{"text_format":"1","workbook":"xlsx","n_sheets":1,"sheets":["Optionsanleihe"],"not_rendered":{"charts":0,"images":1,"macros":1,"external_links":0,"defined_names":0,"comments":0,"pivot_tables":0},"unopened":[],"bounds":{"document_bytes":16777216,"sheet_cells":100000,"rows_first":2000,"rows_last":500,"rows_between":2000,"halvings":0,"cell_chars":16384,"cell_head_chars":4096},"cells_cut":0,"cells_raw":0,"read":"whole","date_system":"1900"}

{"sheet":"Optionsanleihe","index":0,"n_rows":41,"n_cols":11,"rows_kept":41,"cut":false,"hidden":false,"merged":[[3,8,3,9],[11,8,11,9],[20,8,20,9],[28,8,28,9]]}
["Bedingte Kapitalerhöhung",null,"Optionsanleihe"]
[]
["Daten der bedingten Kapitalerhöhung"]
["altes gezeichnetes Kapital in €",{"$f":"K5","v":800000000},"aus Bilanz vor Optionsanleihe",null,null,null,null,"Aktiva","Bilanz vor Optionsanleihe",null,"Passiva"]
["Aktiennennwert in €",1,null,null,null,null,null,"Anlagevermögen",840000000,"gez. Kapital",800000000]
["Anleihebetrag in €",200000000,"Gesamtbetrag der Opitonsanleihe",null,null,null,null,"sonst. Umlaufvermögen",240000000,"Rücklagen",{"$f":"K9-K5-K7-K8","v":80000000}]
["Nominalverzinsung p.a.",0.04,null,null,null,null,null,"liquide Mittel",1000000,"langfr. Fremdkapital",200000000]
["Laufzeit in Jahren",8,null,null,null,null,null,null,null,"kurzfr. Fremdkapital",1000000]
["Emmissionkurs mit Optionsrecht in %",100,null,null,null,null,null,null,{"$f":"SUM(I5:I7)","v":1081000000},null,{"$f":"I9","v":1081000000}]
["Kleinste Stückelung in €",200,"Mindestbetrag einer Anleihe",null,null,null,null,"Bilanzsumme und Rücklagen werden berechnet"]
["rechnerischer Kurs ohne Optionsrecht in %",100]
["Optionsrecht an Aktien in Stück",100,"für",{"$f":"B10","v":200},"Optionsanleihe",null,null,"Aktiva","Bilanz nach Ausgabe der Anleihe",null,"Passiva"]
["Optionspreis für eine Aktie in €",8.0500000000000007,null,null,null,null,null,"Anlagevermögen",{"$f":"I5","v":840000000},"gez. Kapital",{"$f":"K5","v":800000000}]
["Optionsrecht wird ausgeübt von Inhabern von",50000000,"€","Optionsscheinen",null,null,null,"sonst. Umlaufvermögen",{"$f":"I6","v":240000000},"Rücklagen",{"$f":"K17-K13-K15-K16","v":80000000}]
["Anzahl Altaktien eines Aktionärs in Stück",600,null,null,null,null,null,"liquide Mittel",{"$f":"I7+B6","v":201000000},"langfr. Fremdkapital",{"$f":"K7+B6","v":400000000}]
["Zeichnung Optionsanleihe des Aktionärs in €",2000,null,null,null,null,null,null,null,"kurzfr. Fremdkapital",{"$f":"K8","v":1000000}]
[null,null,null,null,null,null,null,null,{"$f":"SUM(I13:I15)","v":1281000000},null,{"$f":"I17","v":1281000000}]
["Berechnungen für die AG"]
["Bezugsverhältnis für die Opitonsanleihe",{"$f":"B4/B6","v":4},"gezeichnetes Kapital/Anleihebetrag"]
["Anzahl neuer Aktien",{"$f":"(B6*B12)/B10","v":100000000},"(Anleihebetrag * Optionsrecht an Aktien in Stück)/kleinste Stückelung"]
["Bedingtes Kapital",{"$f":"B20*B5","v":100000000},"Anzahl neuer Aktien * Nennwert",null,null,null,null,"Aktiva","Bilanz nach Optionsrechtswahrnehmung",null,"Passiva"]
["benötigter Aktiennennwert für Optionsanleihe",{"$f":"ROUNDUP(B16*B19,0)","v":8000},"Zeichnung Opitonsanleihe * Bezugsverhältnis; aufgerundet",null,null,null,null,"Anlagevermögen",{"$f":"I13","v":840000000},"gez. Kapital",{"$f":"K5+B32","v":825000000}]
["benötigte Bezugsrechte in Stück",{"$f":"ROUNDUP(B22/B5,0)","v":8000},"benötigter Aktiennennwert/Nennwert; aufgerundet",null,null,null,null,"sonst. Umlaufvermögen",{"$f":"I14","v":240000000},"Rücklagen",{"$f":"K26-K22-K24-K25","v":256250000}]
["vorhandene Bezugsrechte",{"$f":"B15","v":600},"Anzahl der Altakien",null,null,null,null,"liquide Mittel",{"$f":"I15+(B13*B30)","v":402250000},"langfr. Fremdkapital",{"$f":"K15","v":400000000}]
["Kauf bzw. Verkauf von Bezugsrechten",{"$f":"B23-B24","v":7400},"benötige Bezugsrechte - vorhandene Bezugsreche",null,null,null,null,null,null,"kurzfr. Fremdkapital",{"$f":"K16","v":1000000}]
["Preis für kleinste Stückelung m. O.",{"$f":"B10*B9/100","v":200},"kleinste Stückelung * Kurs m.O.",null,null,null,null,null,{"$f":"SUM(I22:I24)","v":1482250000},null,{"$f":"I26","v":1482250000}]
["Preis für kleinste Stückelung o. O.",{"$f":"B10*B11/100","v":200},"kleinste Stückelung * Kurs o.O."]
["Aufwand für den Opitonsrechtserwerb",{"$f":"B26-B27","v":0},"für",{"$f":"B12","v":100},"Stück","Differenz für kleinste Stückelung"]
["Aufwand für den Erwerb eines Opitonsrechtes",{"$f":"B28/D28","v":0},"für",1,"Opitonsrecht","Aufwand/kleinste Stückelung",null,"Aktiva","Bilanz nach Rückzahlung der Anleihe",null,"Passiva"]
["Anzahl der Aktien",{"$f":"B14*B12/B10","v":25000000},"Anzahl der gewandelten Aktien",null,null,null,null,"Anlagevermögen",{"$f":"I5","v":840000000},"gez. Kapital",{"$f":"K13+B32","v":825000000}]
["Bezugsverhältnis der Kapitalerhöhung",{"$f":"B4/B32","v":32},"gezeichnetes Kapital : Kapitalerhöhung",null,null,null,null,"sonst. Umlaufvermögen",{"$f":"I6","v":240000000},"Rücklagen",{"$f":"K34-K30-K32-K33","v":256250000}]
["Erhöhrung des gezeichneten Kapitals",{"$f":"B30*B5","v":25000000},"Anzahl der gewandelten Aktien * Nennwert",null,null,null,null,"liquide Mittel",{"$f":"I24-B6","v":202250000},"langfr. Fremdkapital",{"$f":"K24-B6","v":200000000}]
["Erhöhung der liquiden Mittel",{"$f":"B30*B13","v":201250000.00000003},"Anzahl der gewandelten Aktien * Optionspreis (Kurs)",null,null,null,null,null,null,"kurzfr. Fremdkapital",{"$f":"K25","v":1000000}]
["Erhöhung der Kapitalrücklage",{"$f":"B33-B32","v":176250000.00000003},"liquide Mittel - Erhöhung des gez. Kapitals",null,null,null,null,null,{"$f":"SUM(I30:I32)","v":1282250000},null,{"$f":"I34","v":1282250000}]
[]
["Berechnungen für den Aktionär",null,null,null,null,null,null,"Bilanzentwicklung ohne Berücksichtigung von Zinszahlungen"]
["Umwandlung aufgrund Opitonsscheinen",{"$f":"INT(B16*B12/B10)","v":1000},"Verhältnis Opitonsrecht : Zeichnung"]
["Ausgabe für Aktienbezug",{"$f":"B37*B13","v":8050.0000000000009},"Aktienzahl * Kurs"]
["Aufwand für eine Aktie m.O.",{"$f":"B13+B29","v":8.0500000000000007},"Kurs + Aufwand für 1 Optionsrecht"]
["Aufwand für den Bezug aller Aktien",{"$f":"B39*B37","v":8050.0000000000009},"Aufwand für eine Aktie m.O.*Aktienanzahl"]
["Jahresverzingsung für gezeichnete Anleihe",{"$f":"B16*B7","v":80},"Verzingsung für B15"]